[Event "26th Troya Open 2018"]
[Site "Canakkale"]
[Date "2018.08.08"]
[Round "5.17"]
[White "Istekli, Erdem"]
[Black "Koc, Azra Ece"]
[Result "1/2-1/2"]
[ECO "B11"]
[WhiteElo "1713"]
[BlackElo "1592"]
[Annotator "NA"]
[PlyCount "80"]
[EventDate "2018.08.06"]
[EventType "swiss"]
[EventCountry "TUR"]
[SourceTitle "playchess.com"]
[Source "ChessBase"]
[SourceQuality "1"]
[TimeControl "5400+30"]

1. e4 {[%emt 0:00:30]} c6 {[%emt 0:00:30]} 2. Nc3 {[%emt 0:00:30]} d5 {[%emt 0:00:30]} 3. Nf3 {[%emt 0:00:30]} dxe4 {[%emt 0:00:30]} 4. Nxe4 {[%emt 0:00:30]} Bf5 {[%emt 0:00:30]} 5. Ng3 {[%emt 0:00:30]} Bg6 {[%emt 0:00:30]} 6. h4 {[%emt 0:00:30]} h6 {[%emt 0:00:30]} 7. Ne5 {[%emt 0:04:30]} Qd6 {[%emt 0:10:30]} 8. d4 {[%emt 0:08:30]} Nd7 {[%emt 0:06:30]} 9. Nxg6 {[%emt 0:05:30]} Qxg6 {[%emt 0:00:30]} 10. Be3 {[%emt 0:07:30]} Qd6 {[%emt 0:09:30]} 11. Qd2 {[%emt 0:01:30]} Nb6 {[%emt 0:08:30]} 12. c4 {[%emt 0:24:30]} Qd8 {[%emt 0:07:30]} 13. Ne4 {[%emt 0:07:30]} e6 {[%emt 0:03:30]} 14. Be2 {[%emt 0:01:30]} Be7 {[%emt 0:02:30]} 15. h5 {[%emt 0:03:30]} Nf6 {[%emt 0:01:30]} 16. Nc3 {[%emt 0:01:30]} Rc8 {[%emt 0:06:30]} 17. O-O-O {[%emt 0:03:30]} Bb4 {[%emt 0:02:30]} 18. Qc2 {[%emt 0:01:30]} Qc7 {[%emt 0:01:30]} 19. Ne4 {[%emt 0:06:51]} Nbd7 {[%emt 0:03:30]} 20. a3 {[%emt 0:06:46]} Be7 {[%emt 0:00:30]} 21. Nc3 {[%emt 0:01:25]} a6 {[%emt 0:02:30]} 22. f4 {[%emt 0:05:06]} c5 {[%emt 0:01:30]} 23. d5 {[%emt 0:00:30]} exd5 {[%emt 0:00:30]} 24. Nxd5 {[%emt 0:00:30]} Nxd5 {[%emt 0:00:30]} 25. Rxd5 {[%emt 0:00:30]} Nf6 {[%emt 0:02:30]} 26. Rdd1 {[%emt 0:01:28]} Bd6 {[%emt 0:01:30]} 27. Qa4+ {[%emt 0:02:14]} Kf8 {[%emt 0:00:30]} 28. g3 {[%emt 0:00:48]} Re8 {[%emt 0:01:30]} 29. Qb3 {[%emt 0:00:49]} Ne4 {[%emt 0:01:30]} 30. Rhg1 {[%emt 0:01:35]} Nf6 {[%emt 0:04:30]} 31. Bf3 {[%emt 0:00:18]} b6 {[%emt 0:00:30]} 32. Qd3 {[%emt 0:00:59]} Rd8 {[%emt 0:00:30]} 33. Qf5 {[%emt 0:00:59]} Ng8 {[%emt 0:04:58]} 34. g4 {[%emt 0:01:17]} Ne7 {[%emt 0:00:53]} 35. Qe4 {[%emt 0:00:27]} Re8 {[%emt 0:01:19]} 36. Qb7 {[%emt 0:00:19]} Bxf4 {[%emt 0:00:33]} 37. Bxf4 {[%emt 0:00:51]} Qxf4+ {[%emt 0:00:06]} 38. Kb1 {[%emt 0:00:02]} Qxc4 {[%emt 0:03:13]} 39. Rd7 {[%emt 0:00:51]} Qe6 {[%emt 0:05:09]} 40. Rf1 {[%emt 0:00:25]} f6 {[%emt 0:01:05]} 1/2-1/2

[Event "26th Troya Open 2018"]
[Site "Canakkale"]
[Date "2018.08.08"]
[Round "5.19"]
[White "Ulupinar, Furkan"]
[Black "Gurses, Ayberk"]
[Result "1/2-1/2"]
[ECO "B30"]
[WhiteElo "1412"]
[BlackElo "1660"]
[Annotator "NA"]
[PlyCount "76"]
[EventDate "2018.08.06"]
[EventType "swiss"]
[EventCountry "TUR"]
[SourceTitle "playchess.com"]
[Source "ChessBase"]
[SourceQuality "1"]
[TimeControl "5400+30"]

1. e4 {[%emt 0:00:30]} c5 {[%emt 0:00:30]} 2. Nf3 {[%emt 0:00:30]} d6 {[%emt 0:00:30]} 3. c4 {[%emt 0:00:30]} e5 {[%emt 0:00:30]} 4. Nc3 {[%emt 0:00:30]} Nc6 {[%emt 0:00:30]} 5. Be2 {[%emt 0:00:30]} f5 {[%emt 0:00:30]} 6. d3 {[%emt 0:00:30]} g6 {[%emt 0:00:30]} 7. h4 {[%emt 0:00:30]} h6 {[%emt 0:00:30]} 8. Bd2 {[%emt 0:00:30]} Be6 {[%emt 0:00:30]} 9. Qc1 {[%emt 0:00:30]} Bg7 {[%emt 0:05:30]} 10. Nd5 {[%emt 0:11:30]} Nf6 {[%emt 0:02:30]} 11. Nxf6+ {[%emt 0:01:30]} Qxf6 {[%emt 0:01:30]} 12. Rb1 {[%emt 0:00:30]} f4 {[%emt 0:07:30]} 13. b4 {[%emt 0:02:30]} b6 {[%emt 0:06:30]} 14. b5 {[%emt 0:07:30]} Ne7 {[%emt 0:02:30]} 15. h5 {[%emt 0:06:30]} g5 {[%emt 0:03:30]} 16. Nh2 {[%emt 0:00:30]} Qf7 {[%emt 0:04:30]} 17. Qd1 {[%emt 0:06:30]} Ng8 {[%emt 0:01:30]} 18. Ng4 {[%emt 0:04:30]} Qd7 {[%emt 0:02:30]} 19. a4 {[%emt 0:00:30]} Nf6 {[%emt 0:02:30]} 20. f3 {[%emt 0:01:30]} O-O {[%emt 0:05:30]} 21. a5 {[%emt 0:00:30]} Bf7 {[%emt 0:01:30]} 22. Nxf6+ {[%emt 0:00:30]} Bxf6 {[%emt 0:00:30]} 23. Kf2 {[%emt 0:01:30]} Qe8 {[%emt 0:03:30]} 24. Rh3 {[%emt 0:00:30]} Bxh5 {[%emt 0:02:30]} 25. Qh1 {[%emt 0:00:30]} Bg6 {[%emt 0:02:30]} 26. Rxh6 {[%emt 0:00:30]} Kg7 {[%emt 0:00:00]} 27. Qh2 {[%emt 0:09:30]} Kg8 {[%emt 0:43:00]} 28. Qh1 {[%emt 0:00:30]} Kg7 {[%emt 0:00:30]} 29. Qh2 {[%emt 0:00:30]} Qd8 {[%emt 0:00:30]} 30. Rh1 {[%emt 0:00:30]} Rh8 {[%emt 0:00:00]} 31. Rxh8 {[%emt 0:02:30]} Qxh8 {[%emt 0:00:00]} 32. Qxh8+ {[%emt 0:00:00]} Rxh8 {[%emt 0:00:00]} 33. Ra1 {[%emt 0:01:00]} Bd8 {[%emt 0:00:00]} 34. axb6 {[%emt 0:01:30]} axb6 {[%emt 0:00:00]} 35. Ra7+ {[%emt 0:00:30]} Kf6 {[%emt 0:00:00]} 36. Bf1 {[%emt 0:02:30]} Ke6 {[%emt 0:00:00]} 37. g3 {[%emt 0:03:30]} Rh2+ {[%emt 0:00:00]} 38. Bg2 {[%emt 0:00:30]} Rh7 {[%emt 0:00:00]} 1/2-1/2

[Event "26th Troya Open 2018"]
[Site "Canakkale"]
[Date "2018.08.09"]
[Round "6.2"]
[White "Arat, Ufuk Sezen"]
[Black "Eminov, Orkhan"]
[Result "0-1"]
[ECO "E63"]
[WhiteElo "2386"]
[BlackElo "2272"]
[Annotator "NA"]
[PlyCount "83"]
[EventDate "2018.08.06"]
[EventType "swiss"]
[EventCountry "TUR"]
[SourceTitle "playchess.com"]
[Source "ChessBase"]
[SourceQuality "1"]
[TimeControl "5400+30"]

1. d4 Nf6 2. Nf3 g6 3. c4 Bg7 4. g3 O-O 5. Bg2 d6 6. O-O {[%emt 0:44:00] [%clk 0:48]} Nc6 {[%emt 0:55:00]} ({Predecessor:} 6... c6 $146 7. Nc3 Bf5 8. Nd2 e5 9. d5 Qc8 10. e4 Bg4 11. f3 Bd7 12. Nb3 a5 13. a4 Na6 14. Be3 Nb4 15. Rf2 Qd8 16. dxc6 Bxc6 {0-1 (40) Ding,L (2791)-Caruana,F (2822) Stavanger 2018}) 7. Nc3 {[%emt 0:01:30]} a6 {[%emt 0:00:30]} 8. Qd3 {[%emt 0:00:30]} Bf5 {[%emt 0:00:30]} 9. e4 {[%emt 0:00:30]} Bg4 {[%emt 0:00:30]} 10. Be3 {[%emt 0:00:30]} Nd7 {[%emt 0:00:30]} 11. h3 {[%emt 0:00:30]} Bxf3 {[%emt 0:00:30]} 12. Bxf3 {[%emt 0:00:30]} e5 {[%emt 0:00:30]} 13. d5 {[%emt 0:00:30]} Nd4 {[%emt 0:00:30]} 14. Bg2 {[%emt 0:00:30]} c5 {[%emt 0:00:30]} 15. dxc6 {[%emt 0:00:30]} Nc5 {[%emt 0:00:30]} 16. Qd2 {[%emt 0:00:30]} bxc6 {[%emt 0:00:30]} 17. f4 {[%emt 0:00:00]} f5 {[%emt 0:02:30]} 18. exf5 {[%emt 0:09:00]} gxf5 {[%emt 0:00:30]} 19. Ne2 {[%emt 0:09:30]} Nxe2+ {[%emt 0:08:30]} 20. Qxe2 {[%emt 0:00:30]} e4 {[%emt 0:01:30]} 21. Bxc5 {[%emt 0:01:30]} dxc5 {[%emt 0:00:30]} 22. Rad1 {[%emt 0:00:00]} Bd4+ {[%emt 0:03:30]} 23. Kh1 {[%emt 0:00:00]} Qf6 {[%emt 0:02:30]} 24. g4 {[%emt 0:00:00]} Kh8 {[%emt 0:02:30]} 25. g5 {[%emt 0:03:00]} Qg7 {[%emt 0:02:37]} 26. b3 {[%emt 0:01:30]} a5 {[%emt 0:00:08]} 27. h4 {[%emt 0:01:30]} a4 {[%emt 0:00:50]} 28. Rb1 {[%emt 0:02:30]} axb3 {[%emt 0:11:06]} 29. Rxb3 {[%emt 0:00:30]} Qc7 {[%emt 0:00:30]} 30. Bh3 {[%emt 0:02:30]} Rab8 {[%emt 0:02:14]} 31. Rxb8 {[%emt 0:00:30]} Qxb8 {[%emt 0:00:30]} 32. h5 {[%emt 0:00:30]} Qa7 {[%emt 0:01:09]} 33. Rb1 {[%emt 0:05:44]} Qc7 {[%emt 0:00:24]} 34. Rf1 {[%emt 0:03:30]} Qf7 {[%emt 0:01:55]} 35. Rb1 {[%emt 0:03:00]} Qc7 {[%emt 0:00:52]} 36. Qh2 {[%emt 0:04:05]} e3 {[%emt 0:00:50]} 37. h6 {[%emt 0:00:56]} Qe7 {[%emt 0:00:35]} 38. Re1 {[%emt 0:04:41]} Bc3 {[%emt 0:00:19]} 39. Re2 {[%emt 0:00:33]} Qe6 {[%emt 0:00:09]} 40. Qg3 {[%emt 0:02:32]} Bd4 {[%emt 0:00:32]} 41. Bg2 {[%emt 0:00:40]} Qxc4 {[%emt 0:00:54]} 42. Rxe3 {[%emt 0:02:19]} 0-1

[Event "26th Troya Open 2018"]
[Site "Canakkale"]
[Date "2018.08.09"]
[Round "6.4"]
[White "Kirilmaz, Emre"]
[Black "Mgeladze, Tamaz"]
[Result "1/2-1/2"]
[ECO "A48"]
[WhiteElo "1895"]
[BlackElo "2400"]
[Annotator "NA"]
[PlyCount "60"]
[EventDate "2018.08.06"]
[EventType "swiss"]
[EventCountry "TUR"]
[SourceTitle "playchess.com"]
[Source "ChessBase"]
[SourceQuality "1"]
[TimeControl "5400+30"]

1. d4 Nf6 2. c3 g6 3. Bg5 Bg7 4. Nd2 O-O 5. e4 d6 6. Ngf3 c5 7. dxc5 dxc5 8. Bc4 Nc6 9. O-O Qc7 10. Bh4 Nh5 11. Re1 h6 12. Bb3 {[%emt 0:53:00] [%clk 0:42]} b5 {[%emt 0:44:00]} 13. Qe2 {[%emt 0:01:30]} c4 {[%emt 0:00:30]} 14. Bc2 {[%emt 0:00:30]} Bb7 {[%emt 0:00:30]} 15. e5 {[%emt 0:00:30]} Nf4 {[%emt 0:00:30]} 16. Qe3 {[%emt 0:00:30]} Ne6 $16 {[%emt 0:00:30]} 17. Bg3 {[%emt 0:00:30]} Rfd8 {[%emt 0:00:30]} 18. h4 {[%emt 0:00:30]} Qb6 {[%emt 0:00:30]} 19. Qe2 {[%emt 0:00:30]} Nb8 {[%emt 0:00:30]} 20. h5 {[%emt 0:00:30]} g5 {[%emt 0:00:30]} 21. Nf1 {[%emt 0:00:30]} Nd7 {[%emt 0:00:30]} 22. Ne3 {[%emt 0:00:30]} Ndc5 {[%emt 0:00:30]} 23. Nf5 {[%emt 0:00:30]} Nd3 {[%emt 0:00:30]} 24. Bxd3 {[%emt 0:03:30]} cxd3 {[%emt 0:01:30]} 25. Qe3 {[%emt 0:00:30]} d2 {[%emt 0:05:30]} 26. Red1 {[%emt 0:00:30]} Qxe3 {[%emt 0:00:30]} 27. fxe3 {[%emt 0:00:30]} Kf8 {[%emt 0:02:30]} 28. Nxd2 {[%emt 0:01:30]} Nc5 {[%emt 0:02:30]} 29. Nd4 {[%emt 0:03:30]} Nd3 {[%emt 0:06:30]} 30. Rf1 {[%emt 0:00:30]} Kg8 {[%emt 0:07:30]} 1/2-1/2

[Event "26th Troya Open 2018"]
[Site "Canakkale"]
[Date "2018.08.09"]
[Round "6.6"]
[White "Lomsadze, Davit"]
[Black "Aliyev, Elnur"]
[Result "1/2-1/2"]
[ECO "A07"]
[WhiteElo "2352"]
[BlackElo "2190"]
[Annotator "NA"]
[PlyCount "116"]
[EventDate "2018.08.06"]
[EventType "swiss"]
[EventCountry "TUR"]
[SourceTitle "playchess.com"]
[Source "ChessBase"]
[SourceQuality "1"]
[TimeControl "5400+30"]

1. Nf3 (1. g3 Nf6 2. Bg2 d5 3. Nf3 c6 4. d3 Bf5 5. Nh4 Bg4 6. h3 {A07: Réti Opening: New York and Capablanca Systems} Bc8 {LiveBook: 5 Games} (6... Bh5 7. g4 Bg6 8. e3 e6 9. Qe2 Bb4+ 10. Nd2 Nbd7 11. O-O Ng8 12. Nxg6 hxg6 13. f4 {1-0 (35) Kramnik,V (2760)-Tomashevsky,E (2714) Sochi 2014}) 7. Nd2 e5 8. e4 {Predecessor:} Be6 $146 9. Qe2 Nbd7 10. exd5 Bxd5 11. Ndf3 Qc7 12. O-O O-O-O 13. c4 Bxf3 14. Nxf3 {½-½ (40) Stefanova,A (2517)-Kosteniuk,A (2541) Beijing 2014}) 1... d5 2. g3 Nc6 3. Bg2 Bf5 4. c4 e6 {[%emt 0:50:00] [%clk 0:41]} 5. b3 {[%emt 0:45:30]} Nb4 {[%emt 0:01:30]} 6. Na3 {[%emt 0:00:30]} c6 {[%emt 0:00:30]} 7. O-O {[%emt 0:00:30]} Be7 {[%emt 0:00:30]} 8. Bb2 {[%emt 0:00:30]} Bf6 {[%emt 0:00:30]} 9. Qc1 {[%emt 0:00:30]} Bxb2 {[%emt 0:00:30]} 10. Qxb2 {[%emt 0:00:30]} Qf6 {[%emt 0:00:30]} 11. Qc3 {[%emt 0:00:30]} Qxc3 {[%emt 0:00:30]} 12. dxc3 {[%emt 0:00:30]} Nc2 {[%emt 0:00:30]} 13. Nxc2 {[%emt 0:00:30]} Bxc2 {[%emt 0:00:30]} 14. cxd5 {[%emt 0:00:30]} exd5 {[%emt 0:00:30]} 15. Nd4 {[%emt 0:00:30]} Bg6 {[%emt 0:00:30]} 16. c4 {[%emt 0:00:30]} Nf6 {[%emt 0:00:30]} 17. cxd5 {[%emt 0:00:30]} O-O-O {[%emt 0:00:30]} 18. e3 {[%emt 0:08:30]} Nxd5 {[%emt 0:00:30]} 19. Rfc1 {[%emt 0:00:30]} Rhe8 {[%emt 0:02:30]} 20. a3 {[%emt 0:08:30]} Nc7 {[%emt 0:06:30]} 21. b4 {[%emt 0:01:30]} Kb8 {[%emt 0:05:30]} 22. a4 {[%emt 0:02:30]} Be4 {[%emt 0:02:30]} 23. Bxe4 {[%emt 0:01:30]} Rxe4 {[%emt 0:00:30]} 24. Rc4 {[%emt 0:00:30]} Ree8 {[%emt 0:01:30]} 25. b5 {[%emt 0:04:30]} cxb5 {[%emt 0:01:30]} 26. axb5 {[%emt 0:00:00]} Ne6 {[%emt 0:00:00]} 27. Nxe6 {[%emt 0:07:17]} Rxe6 {[%emt 0:01:00]} 28. Rca4 {[%emt 0:00:04]} Rd5 {[%emt 0:00:30]} 29. Rxa7 {[%emt 0:00:22]} Rxb5 {[%emt 0:01:30]} 30. Ra8+ {[%emt 0:00:30]} Kc7 {[%emt 0:00:00]} 31. Rf8 {[%emt 0:00:29]} Rf6 {[%emt 0:02:00]} 32. Ra2 {[%emt 0:00:05]} Kd7 {[%emt 0:00:30]} 33. Rc2 {[%emt 0:00:51]} Ke7 {[%emt 0:00:30]} 34. Rb8 {[%emt 0:00:56]} Rd6 {[%emt 0:00:30]} 35. Kg2 {[%emt 0:00:37]} Rd8 {[%emt 0:01:30]} 36. Rc7+ {[%emt 0:00:35]} Rd7 {[%emt 0:00:00]} 37. Rc4 {[%emt 0:00:02]} Rd2 {[%emt 0:01:00]} 38. Re4+ {[%emt 0:00:44]} Kf6 {[%emt 0:01:30]} 39. Rf4+ {[%emt 0:01:29]} Kg6 {[%emt 0:01:12]} 40. Rg8 {[%emt 0:02:20]} h5 {[%emt 0:00:37]} 41. Rf8 {[%emt 0:00:48]} Rd7 {[%emt 0:00:51]} 42. h4 {[%emt 0:01:58]} Rf5 {[%emt 0:00:49]} 43. Kf3 {[%emt 0:00:05]} Rxf4+ {[%emt 0:01:07]} 44. Kxf4 {[%emt 0:00:05]} Rd6 {[%emt 0:01:14]} 45. e4 {[%emt 0:00:45]} Rb6 {[%emt 0:00:26]} 46. Rh8 {[%emt 0:01:13]} Rb2 {[%emt 0:00:24]} 47. f3 {[%emt 0:00:00]} Rb1 {[%emt 0:01:29]} 48. Rd8 {[%emt 0:04:19]} Kf6 {[%emt 0:01:43]} 49. Rd6+ {[%emt 0:01:24]} Ke7 {[%emt 0:00:57]} 50. Rd5 {[%emt 0:00:02]} g6 {[%emt 0:00:19]} 51. g4 {[%emt 0:00:04]} hxg4 {[%emt 0:00:37]} 52. fxg4 {[%emt 0:00:03]} Kf6 {[%emt 0:04:25]} 53. e5+ {[%emt 0:01:39]} Kg7 {[%emt 0:03:35]} 54. Rd4 {[%emt 0:03:29]} b5 {[%emt 0:01:15]} 55. h5 {[%emt 0:02:48]} gxh5 {[%emt 0:01:12]} 56. gxh5 {[%emt 0:00:04]} b4 {[%emt 0:00:17]} 57. Ke3 {[%emt 0:02:02]} Re1+ {[%emt 0:03:33]} 58. Kf2 {[%emt 0:00:06]} Rxe5 {[%emt 0:02:58]} 1/2-1/2

[Event "26th Troya Open 2018"]
[Site "Canakkale"]
[Date "2018.08.09"]
[Round "6.8"]
[White "Semiev, Suhrab"]
[Black "Soyunlu, Narmin"]
[Result "1/2-1/2"]
[ECO "A08"]
[WhiteElo "2285"]
[BlackElo "2061"]
[Annotator "NA"]
[PlyCount "129"]
[EventDate "2018.08.06"]
[EventType "swiss"]
[EventCountry "TUR"]
[SourceTitle "playchess.com"]
[Source "ChessBase"]
[SourceQuality "1"]
[TimeControl "5400+30"]

1. g3 d5 2. Bg2 Nf6 3. d3 c5 4. Nf3 Nc6 5. Nbd2 g6 6. c4 {[%emt 0:33:00] [%clk 1:00]} d4 {[%emt 1:02:00]} 7. O-O {[%emt 0:00:30]} Bg7 {[%emt 0:00:30]} 8. a3 {[%emt 0:00:30]} O-O {[%emt 0:00:30]} 9. Ne1 {[%emt 0:00:30]} a5 {[%emt 0:00:30]} 10. Nc2 {[%emt 0:00:30]} Qc7 {[%emt 0:00:30]} 11. Rb1 {[%emt 0:00:30]} Bd7 {[%emt 0:00:30]} 12. b4 {[%emt 0:00:30]} axb4 {[%emt 0:00:30]} 13. axb4 {[%emt 0:00:30]} Nxb4 {[%emt 0:00:30]} 14. Nxb4 {[%emt 0:00:30]} cxb4 {[%emt 0:00:30]} 15. Rxb4 {[%emt 0:00:30]} Bc6 {[%emt 0:00:30]} 16. Bb2 {[%emt 0:00:30]} e5 {[%emt 0:00:30]} 17. Qc2 {[%emt 0:00:30]} Bxg2 {[%emt 0:00:30]} 18. Kxg2 {[%emt 0:00:30]} Nd7 {[%emt 0:00:30]} 19. Nf3 {[%emt 0:00:30]} Nc5 {[%emt 0:00:30]} 20. Bc1 {[%emt 0:00:30]} f5 {[%emt 0:00:30]} 21. Rb5 {[%emt 0:00:30]} e4 {[%emt 0:02:30]} 22. Nd2 {[%emt 0:13:30]} exd3 {[%emt 0:04:30]} 23. exd3 {[%emt 0:00:00]} Rfe8 {[%emt 0:00:00]} 24. Nb3 {[%emt 0:07:00]} Na4 {[%emt 0:03:00]} 25. Bd2 {[%emt 0:00:30]} Re2 {[%emt 0:03:30]} 26. Nc1 {[%emt 0:00:30]} Qc6+ {[%emt 0:00:30]} 27. Kg1 {[%emt 0:00:30]} Nc3 {[%emt 0:01:17]} 28. Rd5 {[%emt 0:12:30]} Rxf2 {[%emt 0:06:37]} 29. Rxf2 {[%emt 0:00:30]} Nxd5 {[%emt 0:00:04]} 30. Qb1 {[%emt 0:05:30]} Ne3 {[%emt 0:01:39]} 31. Ne2 {[%emt 0:00:30]} Ra4 {[%emt 0:03:03]} 32. Nc1 {[%emt 0:04:56]} g5 {[%emt 0:05:08]} 33. Qb3 {[%emt 0:01:47]} f4 {[%emt 0:03:22]} 34. c5+ {[%emt 0:01:57]} Kh8 {[%emt 0:00:01]} 35. Qf7 {[%emt 0:00:20]} Ra8 {[%emt 0:00:29]} 36. Qe7 {[%emt 0:03:35]} Ng4 {[%emt 0:01:36]} 37. Rf1 {[%emt 0:01:53]} f3 {[%emt 0:00:57]} 38. Qe4 {[%emt 0:01:40]} f2+ {[%emt 0:01:05]} 39. Kh1 {[%emt 0:00:00]} Qxe4+ {[%emt 0:00:43]} 40. dxe4 {[%emt 0:00:10]} Rf8 {[%emt 0:00:30]} 41. Bxg5 {[%emt 0:00:30]} Ne3 {[%emt 0:00:30]} 42. Bxe3 {[%emt 0:00:30]} dxe3 {[%emt 0:00:00]} 43. Ne2 {[%emt 0:03:04]} Rc8 {[%emt 0:00:01]} 44. Rd1 {[%emt 0:00:30]} Be5 {[%emt 0:00:59]} 45. Kg2 {[%emt 0:00:19]} Rxc5 {[%emt 0:00:55]} 46. Kf3 {[%emt 0:00:28]} b5 {[%emt 0:00:29]} 47. Kxe3 {[%emt 0:01:11]} b4 {[%emt 0:00:08]} 48. Kxf2 {[%emt 0:00:17]} b3 {[%emt 0:00:37]} 49. Rb1 {[%emt 0:00:13]} b2 {[%emt 0:00:16]} 50. Ke3 {[%emt 0:00:35]} Ra5 {[%emt 0:00:39]} 51. Kd2 {[%emt 0:00:30]} Ra4 {[%emt 0:00:46]} 52. Kd3 {[%emt 0:06:51]} Ra3+ {[%emt 0:00:01]} 53. Kd2 {[%emt 0:00:33]} Rf3 {[%emt 0:00:17]} 54. h4 {[%emt 0:02:24]} Kg8 {[%emt 0:00:36]} 55. Kc2 {[%emt 0:00:34]} Re3 {[%emt 0:00:32]} 56. Nf4 {[%emt 0:00:39]} Rxe4 {[%emt 0:01:32]} 57. Nd3 {[%emt 0:00:06]} Rc4+ {[%emt 0:00:05]} 58. Kd2 {[%emt 0:00:51]} Bxg3 {[%emt 0:00:20]} 59. Nxb2 {[%emt 0:00:50]} Rxh4 {[%emt 0:00:42]} 60. Rg1 {[%emt 0:00:18]} Rg4 {[%emt 0:00:52]} 61. Ke2 {[%emt 0:00:30]} Rg7 {[%emt 0:00:01]} 62. Kf3 {[%emt 0:00:00]} Be5 {[%emt 0:00:43]} 63. Rxg7+ {[%emt 0:00:23]} Kxg7 {[%emt 0:00:30]} 64. Nd3 {[%emt 0:00:00]} Bd6 {[%emt 0:00:00]} 65. Ke4 {[%emt 0:00:24]} 1/2-1/2

[Event "26th Troya Open 2018"]
[Site "Canakkale"]
[Date "2018.08.09"]
[Round "6.11"]
[White "Yildizak, Goksel"]
[Black "Abdulla, Khayala"]
[Result "0-1"]
[ECO "A30"]
[WhiteElo "1910"]
[BlackElo "2245"]
[Annotator "NA"]
[PlyCount "98"]
[EventDate "2018.08.06"]
[EventType "swiss"]
[EventCountry "TUR"]
[SourceTitle "playchess.com"]
[Source "ChessBase"]
[SourceQuality "1"]
[TimeControl "5400+30"]

1. d4 Nf6 2. Nf3 e6 3. g3 b6 4. Bg2 Bb7 5. O-O c5 6. c4 cxd4 7. Nxd4 Bxg2 8. Kxg2 Be7 9. Nc3 O-O 10. b3 a6 11. e4 d6 12. Be3 Qc7 13. Rc1 Nbd7 {[%emt 0:28:30] [%clk 1:08]} 14. Qe2 {[%emt 1:09:00]} Rac8 $14 {[%emt 0:00:30]} 15. Rfd1 {[%emt 0:00:30]} Rfe8 {[%emt 0:00:30]} 16. f3 {[%emt 0:00:30]} Qb7 {[%emt 0:00:30]} 17. Qf2 {[%emt 0:00:30]} Ne5 {[%emt 0:00:30]} 18. h3 {[%emt 0:00:30]} h5 {[%emt 0:00:30]} 19. Kg1 {[%emt 0:00:30]} Ng6 {[%emt 0:00:30]} 20. Qg2 {[%emt 0:00:30]} d5 {[%emt 0:00:30]} 21. cxd5 {[%emt 0:00:30]} exd5 {[%emt 0:00:30]} 22. Nxd5 {[%emt 0:00:30]} Nxd5 {[%emt 0:00:30]} 23. Rxc8 {[%emt 0:00:30]} Rxc8 {[%emt 0:00:30]} 24. exd5 {[%emt 0:00:30]} Qxd5 {[%emt 0:00:30]} 25. f4 {[%emt 0:00:30]} Qd7 {[%emt 0:00:30]} 26. Rd2 {[%emt 0:01:30]} Bb4 {[%emt 0:03:30]} 27. Rc2 {[%emt 0:02:30]} Bc5 {[%emt 0:11:30]} 28. Bf2 {[%emt 0:02:30]} h4 {[%emt 0:02:30]} 29. Kh2 {[%emt 0:04:37]} hxg3+ {[%emt 0:03:30]} 30. Qxg3 {[%emt 0:00:44]} Rd8 {[%emt 0:01:30]} 31. Ne2 {[%emt 0:11:43]} Qd1 {[%emt 0:02:30]} 32. Rb2 {[%emt 0:00:01]} Qa1 {[%emt 0:09:30]} 33. Rc2 {[%emt 0:00:12]} Rd1 {[%emt 0:00:30]} 34. Ng1 {[%emt 0:00:14]} Bd6 {[%emt 0:02:30]} 35. Qg4 {[%emt 0:01:42]} Bxf4+ {[%emt 0:04:30]} 36. Kg2 {[%emt 0:00:16]} Rd6 {[%emt 0:05:30]} 37. Nf3 {[%emt 0:02:24]} Qf6 {[%emt 0:01:30]} 38. Rc8+ {[%emt 0:00:37]} Rd8 {[%emt 0:02:30]} 39. Bd4 {[%emt 0:00:50]} Qd6 {[%emt 0:01:30]} 40. Rxd8+ {[%emt 0:01:07]} Qxd8 {[%emt 0:00:30]} 41. h4 {[%emt 0:00:00]} Bh6 {[%emt 0:00:00]} 42. Kf2 {[%emt 0:01:26]} Nf4 {[%emt 0:04:28]} 43. Qf5 {[%emt 0:01:35]} Ne6 {[%emt 0:00:32]} 44. Bc3 {[%emt 0:01:05]} b5 {[%emt 0:02:40]} 45. Ne5 {[%emt 0:00:56]} Qxh4+ {[%emt 0:00:32]} 46. Ke2 {[%emt 0:01:03]} Qh2+ {[%emt 0:02:31]} 47. Ke1 {[%emt 0:01:02]} Qg1+ {[%emt 0:01:55]} 48. Ke2 {[%emt 0:00:15]} Nf4+ {[%emt 0:00:49]} 49. Kf3 {[%emt 0:00:01]} Qf1+ {[%emt 0:01:18]} 0-1

[Event "26th Troya Open 2018"]
[Site "Canakkale"]
[Date "2018.08.09"]
[Round "6.16"]
[White "Koc, Azra Ece"]
[Black "Kurt, Emre"]
[Result "1/2-1/2"]
[ECO "E91"]
[WhiteElo "1592"]
[BlackElo "1642"]
[Annotator "NA"]
[PlyCount "49"]
[EventDate "2018.08.06"]
[EventType "swiss"]
[EventCountry "TUR"]
[SourceTitle "playchess.com"]
[Source "ChessBase"]
[SourceQuality "1"]
[TimeControl "5400+30"]

1. d4 Nf6 2. Nf3 d6 3. c4 g6 4. Nc3 Bg7 5. e4 Nbd7 6. h3 O-O 7. Be3 e5 8. Be2 a5 9. O-O Re8 10. Qc2 {[%emt 0:57:00] [%clk 0:38]} exd4 {[%emt 0:46:00]} 11. Bxd4 {[%emt 0:00:30]} Nh5 {[%emt 0:00:30]} 12. Nd5 {[%emt 0:00:30]} Bxd4 {[%emt 0:00:30]} 13. Nxd4 {[%emt 0:00:30]} Nhf6 {[%emt 0:00:30]} 14. Nb5 {[%emt 0:00:30]} Nxd5 {[%emt 0:00:30]} 15. cxd5 {[%emt 0:00:30]} Nc5 {[%emt 0:00:30]} 16. Nc3 {[%emt 0:00:30]} f5 {[%emt 0:00:30]} 17. Bb5 {[%emt 0:00:30]} Re7 {[%emt 0:00:30]} 18. exf5 {[%emt 0:00:30]} Bxf5 {[%emt 0:01:30]} 19. Qd2 {[%emt 0:00:30]} Bd7 {[%emt 0:05:30]} 20. Bxd7 {[%emt 0:03:30]} Qxd7 {[%emt 0:01:30]} 21. Rfe1 {[%emt 0:02:30]} Rae8 {[%emt 0:01:30]} 22. Re3 {[%emt 0:06:30]} Rxe3 {[%emt 0:02:30]} 23. fxe3 {[%emt 0:00:00]} b6 {[%emt 0:02:30]} 24. Rf1 {[%emt 0:04:00]} Qe7 {[%emt 0:04:30]} 25. Rf3 {[%emt 0:00:30]} 1/2-1/2